[Event "Titled Tuesday Blitz November 22 Early 2022"]
[White "Shapiro, Daniel"]
[Black "Torres Dominguez, David"]
[WhiteFideId "2001780"]
[BlackFideId "2220857"]
[WhiteElo "2317"]
[BlackElo "2037"]
[Result "0-1"]
[Round "07"]
[TimeControl "180+1"]
[Date "2022.11.23"]
[WhiteClock "0:00:05"]
[BlackClock "0:00:36"]

1. d4 {[%clk 0:03:00]}  e5 {[%clk 0:02:56]} 2. dxe5 {[%clk 0:03:00]}  d6 {[%clk 0:02:57]} 3. Bf4 {[%clk 0:02:59]}  Nc6 {[%clk 0:02:56]} 4. exd6 {[%clk 0:02:58]}  Qf6 {[%clk 0:02:56]} 5. Qc1 {[%clk 0:02:45]}  Bxd6 {[%clk 0:02:55]} 6. Bg5 {[%clk 0:02:41]}  Qg6 {[%clk 0:02:46]} 7. Nf3 {[%clk 0:02:41]}  Bg4 {[%clk 0:02:37]} 8. Nbd2 {[%clk 0:02:33]}  Nge7 {[%clk 0:02:36]} 9. e3 {[%clk 0:02:29]}  f6 {[%clk 0:02:34]} 10. Bd3 {[%clk 0:02:24]}  Qf7 {[%clk 0:02:29]} 11. Bh4 {[%clk 0:02:21]}  O-O-O {[%clk 0:02:26]} 12. Bg3 {[%clk 0:02:17]}  h5 {[%clk 0:02:18]} 13. Ne4 {[%clk 0:02:02]}  Bb4+ {[%clk 0:02:11]} 14. Kf1 {[%clk 0:01:53]}  h4 {[%clk 0:01:59]} 15. Nxh4 {[%clk 0:01:46]}  g5 {[%clk 0:01:59]} 16. Nf3 {[%clk 0:01:44]}  Nf5 {[%clk 0:01:51]} 17. h3 {[%clk 0:01:36]}  Bh5 {[%clk 0:01:15]} 18. a3 {[%clk 0:01:34]}  Ba5 {[%clk 0:01:10]} 19. Bh2 {[%clk 0:01:30]}  Bxf3 {[%clk 0:01:03]} 20. gxf3 {[%clk 0:01:30]}  Nh4 {[%clk 0:01:02]} 21. Ke2 {[%clk 0:01:21]}  Ne5 {[%clk 0:01:02]} 22. Bxe5 {[%clk 0:01:18]}  fxe5 {[%clk 0:01:01]} 23. Nxg5 {[%clk 0:01:14]}  Qh5 {[%clk 0:01:00]} 24. Rg1 {[%clk 0:01:03]}  Rhg8 {[%clk 0:00:54]} 25. e4 {[%clk 0:00:46]}  Rdf8 {[%clk 0:00:53]} 26. Rg3 {[%clk 0:00:39]}  Ng6 {[%clk 0:00:52]} 27. b4 {[%clk 0:00:33]}  Nf4+ {[%clk 0:00:51]} 28. Kd1 {[%clk 0:00:28]}  Bb6 {[%clk 0:00:50]} 29. h4 {[%clk 0:00:22]}  Bxf2 {[%clk 0:00:48]} 30. Rg4 {[%clk 0:00:20]}  Bxh4 {[%clk 0:00:47]} 31. Rxf4 {[%clk 0:00:09]}  exf4 {[%clk 0:00:44]} 32. Ne6 {[%clk 0:00:08]}  Qxf3+ {[%clk 0:00:42]} 33. Kd2 {[%clk 0:00:07]}  Qe3+ {[%clk 0:00:38]} 34. Kc3 {[%clk 0:00:07]}  Bf6+ {[%clk 0:00:38]} 35. Kb3 {[%clk 0:00:07]}  Re8 {[%clk 0:00:36]} 36. Qxe3 {[%clk 0:00:06]}  fxe3 {[%clk 0:00:36]} 37. Nf4 {[%clk 0:00:05]}  Bxa1 {[%clk 0:00:36]} 0-1


[Site "https://www.chess.com"]

[Event "Titled Tuesday Blitz November 22 Early 2022"]
[White "Skibbe, Willi"]
[Black "Golubev, Mikhail"]
[WhiteFideId "4682190"]
[BlackFideId "14100983"]
[WhiteElo "2366"]
[BlackElo "2374"]
[Result "0-1"]
[Round "07"]
[TimeControl "180+1"]
[Date "2022.11.23"]
[WhiteClock "0:00:16"]
[BlackClock "0:00:14"]

1. Nf3 {[%clk 0:02:52]}  d6 {[%clk 0:02:59]} 2. d4 {[%clk 0:02:50]}  Nf6 {[%clk 0:02:59]} 3. c4 {[%clk 0:02:48]}  g6 {[%clk 0:02:58]} 4. Nc3 {[%clk 0:02:48]}  Bg7 {[%clk 0:02:58]} 5. e4 {[%clk 0:02:49]}  O-O {[%clk 0:02:59]} 6. Be2 {[%clk 0:02:49]}  e5 {[%clk 0:02:58]} 7. Be3 {[%clk 0:02:49]}  exd4 {[%clk 0:02:57]} 8. Nxd4 {[%clk 0:02:49]}  Re8 {[%clk 0:02:58]} 9. Qc2 {[%clk 0:02:49]}  Nc6 {[%clk 0:02:39]} 10. Nxc6 {[%clk 0:02:48]}  bxc6 {[%clk 0:02:38]} 11. O-O {[%clk 0:02:48]}  Ng4 {[%clk 0:02:29]} 12. Bxg4 {[%clk 0:02:48]}  Bxg4 {[%clk 0:02:29]} 13. h3 {[%clk 0:02:49]}  Be6 {[%clk 0:02:28]} 14. b3 {[%clk 0:02:37]}  f5 {[%clk 0:02:28]} 15. Rad1 {[%clk 0:02:20]}  fxe4 {[%clk 0:02:24]} 16. Nxe4 {[%clk 0:02:17]}  Bf5 {[%clk 0:02:19]} 17. f3 {[%clk 0:02:17]}  Qe7 {[%clk 0:02:10]} 18. Bd4 {[%clk 0:01:52]}  Bxe4 {[%clk 0:01:58]} 19. fxe4 {[%clk 0:01:50]}  Bxd4+ {[%clk 0:01:44]} 20. Rxd4 {[%clk 0:01:49]}  c5 {[%clk 0:01:44]} 21. Rd2 {[%clk 0:01:41]}  Qxe4 {[%clk 0:01:43]} 22. Qb2 {[%clk 0:01:39]}  Qe5 {[%clk 0:01:33]} 23. Qc2 {[%clk 0:01:33]}  Rf8 {[%clk 0:01:30]} 24. Rfd1 {[%clk 0:01:29]}  Rae8 {[%clk 0:01:27]} 25. Qd3 {[%clk 0:01:20]}  Rf4 {[%clk 0:01:19]} 26. Qd5+ {[%clk 0:01:11]}  Qxd5 {[%clk 0:01:18]} 27. Rxd5 {[%clk 0:01:12]}  Re2 {[%clk 0:01:15]} 28. R5d2 {[%clk 0:01:12]}  Rff2 {[%clk 0:01:12]} 29. Rxe2 {[%clk 0:01:11]}  Rxe2 {[%clk 0:01:13]} 30. Ra1 {[%clk 0:01:11]}  Kg7 {[%clk 0:01:07]} 31. Kf1 {[%clk 0:01:08]}  Rb2 {[%clk 0:01:07]} 32. Re1 {[%clk 0:01:07]}  Kf7 {[%clk 0:01:01]} 33. Re2 {[%clk 0:01:03]}  Rxe2 {[%clk 0:01:01]} 34. Kxe2 {[%clk 0:01:04]}  Ke6 {[%clk 0:00:57]} 35. Ke3 {[%clk 0:00:58]}  Ke5 {[%clk 0:00:57]} 36. g3 {[%clk 0:00:57]}  g5 {[%clk 0:00:51]} 37. a3 {[%clk 0:00:56]}  a5 {[%clk 0:00:49]} 38. Kd3 {[%clk 0:00:54]}  h5 {[%clk 0:00:43]} 39. Ke3 {[%clk 0:00:54]}  h4 {[%clk 0:00:16]} 40. gxh4 {[%clk 0:00:21]}  gxh4 {[%clk 0:00:17]} 41. Kf3 {[%clk 0:00:22]}  Kf5 {[%clk 0:00:17]} 42. Ke3 {[%clk 0:00:22]}  c6 {[%clk 0:00:17]} 43. Kf3 {[%clk 0:00:20]}  d5 {[%clk 0:00:16]} 44. Ke3 {[%clk 0:00:20]}  Ke5 {[%clk 0:00:15]} 45. a4 {[%clk 0:00:18]}  d4+ {[%clk 0:00:14]} 46. Kf3 {[%clk 0:00:16]}  Kf5 {[%clk 0:00:14]} 0-1


[Site "https://www.chess.com"]

[Event "Titled Tuesday Blitz November 22 Early 2022"]
[White "Skliarov, Viktor"]
[Black "Stribuk, Artiom"]
[WhiteFideId "14106736"]
[BlackFideId "13515659"]
[WhiteElo "2284"]
[BlackElo "2371"]
[Result "1-0"]
[Round "07"]
[TimeControl "180+1"]
[Date "2022.11.23"]
[WhiteClock "0:00:12"]
[BlackClock "0:00:03"]

1. e4 {[%clk 0:03:00]}  c5 {[%clk 0:02:56]} 2. Nf3 {[%clk 0:03:01]}  Nc6 {[%clk 0:02:54]} 3. Bb5 {[%clk 0:03:00]}  e6 {[%clk 0:02:54]} 4. Bxc6 {[%clk 0:03:00]}  bxc6 {[%clk 0:02:55]} 5. d3 {[%clk 0:03:01]}  Ne7 {[%clk 0:02:55]} 6. Qe2 {[%clk 0:03:01]}  d6 {[%clk 0:02:53]} 7. e5 {[%clk 0:02:59]}  f6 {[%clk 0:02:51]} 8. exd6 {[%clk 0:02:57]}  Nf5 {[%clk 0:02:51]} 9. Nc3 {[%clk 0:02:50]}  Bxd6 {[%clk 0:02:51]} 10. Ne4 {[%clk 0:02:49]}  Be7 {[%clk 0:02:51]} 11. O-O {[%clk 0:02:44]}  O-O {[%clk 0:02:51]} 12. b3 {[%clk 0:02:41]}  Nd4 {[%clk 0:02:31]} 13. Nxd4 {[%clk 0:02:38]}  cxd4 {[%clk 0:02:30]} 14. f4 {[%clk 0:02:31]}  Qd5 {[%clk 0:02:21]} 15. a4 {[%clk 0:02:26]}  c5 {[%clk 0:02:10]} 16. Bd2 {[%clk 0:02:20]}  Bb7 {[%clk 0:02:09]} 17. Rae1 {[%clk 0:02:19]}  Rae8 {[%clk 0:02:09]} 18. Ng3 {[%clk 0:02:04]}  Bd6 {[%clk 0:02:05]} 19. Qe4 {[%clk 0:02:00]}  f5 {[%clk 0:01:45]} 20. Qxd5 {[%clk 0:01:52]}  Bxd5 {[%clk 0:01:46]} 21. Rf2 {[%clk 0:01:35]}  h6 {[%clk 0:01:46]} 22. Bc1 {[%clk 0:01:28]}  Kf7 {[%clk 0:01:38]} 23. Nf1 {[%clk 0:01:26]}  Rg8 {[%clk 0:01:32]} 24. Nd2 {[%clk 0:01:25]}  g5 {[%clk 0:01:26]} 25. Nc4 {[%clk 0:01:16]}  Bxc4 {[%clk 0:01:15]} 26. dxc4 {[%clk 0:01:14]}  Rg6 {[%clk 0:01:02]} 27. Kf1 {[%clk 0:00:32]}  gxf4 {[%clk 0:00:46]} 28. Bxf4 {[%clk 0:00:31]}  e5 {[%clk 0:00:46]} 29. Bd2 {[%clk 0:00:22]}  Ke6 {[%clk 0:00:43]} 30. c3 {[%clk 0:00:20]}  e4 {[%clk 0:00:40]} 31. cxd4 {[%clk 0:00:13]}  cxd4 {[%clk 0:00:41]} 32. b4 {[%clk 0:00:14]}  Be5 {[%clk 0:00:32]} 33. c5 {[%clk 0:00:10]}  Rc8 {[%clk 0:00:23]} 34. Bf4 {[%clk 0:00:10]}  Bg7 {[%clk 0:00:19]} 35. g3 {[%clk 0:00:07]}  Kd5 {[%clk 0:00:19]} 36. Rb1 {[%clk 0:00:06]}  d3 {[%clk 0:00:19]} 37. Bd6 {[%clk 0:00:04]}  Rf6 {[%clk 0:00:15]} 38. Bf4 {[%clk 0:00:02]}  Rf7 {[%clk 0:00:15]} 39. Ra2 {[%clk 0:00:02]}  Bd4 {[%clk 0:00:14]} 40. Ke1 {[%clk 0:00:02]}  e3 {[%clk 0:00:14]} 41. Ra3 {[%clk 0:00:02]}  Ke4 {[%clk 0:00:11]} 42. Rbb3 {[%clk 0:00:02]}  d2+ {[%clk 0:00:08]} 43. Ke2 {[%clk 0:00:03]}  Rd7 {[%clk 0:00:05]} 44. Bxe3 {[%clk 0:00:03]}  Bc3 {[%clk 0:00:05]} 45. Rb1 {[%clk 0:00:01]}  Rcd8 {[%clk 0:00:05]} 46. Rd1 {[%clk 0:00:02]}  Bxb4 {[%clk 0:00:05]} 47. Rb3 {[%clk 0:00:02]}  a5 {[%clk 0:00:06]} 48. Bf4 {[%clk 0:00:03]}  Rd3 {[%clk 0:00:06]} 49. Rxd3 {[%clk 0:00:03]}  Rxd3 {[%clk 0:00:06]} 50. Bxd2 {[%clk 0:00:04]}  Rb3 {[%clk 0:00:02]} 51. Bxb4 {[%clk 0:00:04]}  Rxb4 {[%clk 0:00:03]} 52. Rc1 {[%clk 0:00:04]}  Rb2+ {[%clk 0:00:03]} 53. Kd1 {[%clk 0:00:04]}  Rb8 {[%clk 0:00:02]} 54. c6 {[%clk 0:00:05]}  Rc8 {[%clk 0:00:02]} 55. c7 {[%clk 0:00:05]}  Kd5 {[%clk 0:00:03]} 56. Ke2 {[%clk 0:00:06]}  Kd6 {[%clk 0:00:03]} 57. Kf3 {[%clk 0:00:06]}  Rxc7 {[%clk 0:00:04]} 58. Rxc7 {[%clk 0:00:06]}  Kxc7 {[%clk 0:00:05]} 59. Kf4 {[%clk 0:00:07]}  Kc6 {[%clk 0:00:05]} 60. Kxf5 {[%clk 0:00:08]}  Kc5 {[%clk 0:00:06]} 61. Kg6 {[%clk 0:00:09]}  Kb4 {[%clk 0:00:07]} 62. Kxh6 {[%clk 0:00:09]}  Kxa4 {[%clk 0:00:08]} 63. g4 {[%clk 0:00:10]}  Kb4 {[%clk 0:00:07]} 64. g5 {[%clk 0:00:11]}  a4 {[%clk 0:00:07]} 65. g6 {[%clk 0:00:12]}  a3 {[%clk 0:00:08]} 66. g7 {[%clk 0:00:13]}  a2 {[%clk 0:00:09]} 67. g8=Q {[%clk 0:00:13]}  a1=Q {[%clk 0:00:10]} 68. Qb8+ {[%clk 0:00:13]}  Kc5 {[%clk 0:00:10]} 69. Qc7+ {[%clk 0:00:13]}  Kb4 {[%clk 0:00:10]} 70. Qb6+ {[%clk 0:00:13]}  Kc4 {[%clk 0:00:10]} 71. Qc6+ {[%clk 0:00:13]}  Kb4 {[%clk 0:00:11]} 72. Qd6+ {[%clk 0:00:14]}  Kc4 {[%clk 0:00:11]} 73. Qe6+ {[%clk 0:00:14]}  Kb4 {[%clk 0:00:11]} 74. Qe4+ {[%clk 0:00:14]}  Kb3 {[%clk 0:00:11]} 75. h4 {[%clk 0:00:14]}  Qc1+ {[%clk 0:00:10]} 76. Kh5 {[%clk 0:00:14]}  Qc5+ {[%clk 0:00:10]} 77. Kg4 {[%clk 0:00:14]}  Ka2 {[%clk 0:00:10]} 78. h5 {[%clk 0:00:14]}  Qg1+ {[%clk 0:00:09]} 79. Kf5 {[%clk 0:00:13]}  Qf2+ {[%clk 0:00:09]} 80. Kg6 {[%clk 0:00:13]}  Qb6+ {[%clk 0:00:09]} 81. Kg5 {[%clk 0:00:13]}  Qc5+ {[%clk 0:00:07]} 82. Qf5 {[%clk 0:00:12]}  Qe3+ {[%clk 0:00:06]} 83. Kg6 {[%clk 0:00:13]}  Ka1 {[%clk 0:00:05]} 84. h6 {[%clk 0:00:13]}  Qg1+ {[%clk 0:00:05]} 85. Kh7 {[%clk 0:00:12]}  Qa7+ {[%clk 0:00:05]} 86. Kg8 {[%clk 0:00:12]}  Qb8+ {[%clk 0:00:05]} 87. Kg7 {[%clk 0:00:13]}  Qc7+ {[%clk 0:00:05]} 88. Qf7 {[%clk 0:00:13]}  Qg3+ {[%clk 0:00:05]} 89. Kf8 {[%clk 0:00:12]}  Qb8+ {[%clk 0:00:05]} 90. Qe8 {[%clk 0:00:12]}  Qf4+ {[%clk 0:00:04]} 91. Kg7 {[%clk 0:00:12]}  Qg5+ {[%clk 0:00:04]} 92. Kh7 {[%clk 0:00:12]}  Qf5+ {[%clk 0:00:04]} 93. Qg6 {[%clk 0:00:12]}  Qb5 {[%clk 0:00:04]} 94. Qg7+ {[%clk 0:00:11]}  Ka2 {[%clk 0:00:04]} 95. Qf7+ {[%clk 0:00:11]}  Ka1 {[%clk 0:00:04]} 96. Kg8 {[%clk 0:00:11]}  Qb8+ {[%clk 0:00:04]} 97. Qf8 {[%clk 0:00:12]}  Qg3+ {[%clk 0:00:04]} 98. Qg7+ {[%clk 0:00:12]}  Qxg7+ {[%clk 0:00:03]} 99. Kxg7 {[%clk 0:00:12]} 1-0


[Site "https://www.chess.com"]

[Event "Titled Tuesday Blitz November 22 Early 2022"]
[White "Stijve, Theo"]
[Black "Artemenko, Oleg"]
[WhiteFideId "1331132"]
[BlackFideId "14201798"]
[WhiteElo "2256"]
[BlackElo "2287"]
[Result "0-1"]
[Round "07"]
[TimeControl "180+1"]
[Date "2022.11.23"]
[WhiteClock "0:00:13"]
[BlackClock "0:01:02"]

1. Nf3 {[%clk 0:03:00]}  e6 {[%clk 0:03:00]} 2. c4 {[%clk 0:03:00]}  Nf6 {[%clk 0:03:00]} 3. g3 {[%clk 0:03:00]}  b6 {[%clk 0:03:01]} 4. Bg2 {[%clk 0:03:00]}  Bb7 {[%clk 0:03:01]} 5. O-O {[%clk 0:03:01]}  Be7 {[%clk 0:02:58]} 6. Nc3 {[%clk 0:02:59]}  O-O {[%clk 0:02:58]} 7. d4 {[%clk 0:02:58]}  Ne4 {[%clk 0:02:57]} 8. Nd2 {[%clk 0:02:44]}  Nxc3 {[%clk 0:02:56]} 9. bxc3 {[%clk 0:02:44]}  Bxg2 {[%clk 0:02:56]} 10. Kxg2 {[%clk 0:02:45]}  Nc6 {[%clk 0:02:56]} 11. e4 {[%clk 0:02:42]}  Na5 {[%clk 0:02:50]} 12. Qe2 {[%clk 0:02:35]}  f5 {[%clk 0:02:41]} 13. e5 {[%clk 0:02:28]}  c6 {[%clk 0:02:35]} 14. Nb3 {[%clk 0:02:25]}  Nxb3 {[%clk 0:02:30]} 15. axb3 {[%clk 0:02:25]}  a5 {[%clk 0:02:31]} 16. f4 {[%clk 0:02:20]}  Qc7 {[%clk 0:02:29]} 17. Rd1 {[%clk 0:02:19]}  Qb7 {[%clk 0:02:29]} 18. Qf3 {[%clk 0:02:16]}  b5 {[%clk 0:02:28]} 19. cxb5 {[%clk 0:02:13]}  Qxb5 {[%clk 0:02:28]} 20. c4 {[%clk 0:02:13]}  Qb7 {[%clk 0:02:28]} 21. Ba3 {[%clk 0:02:10]}  Bxa3 {[%clk 0:02:25]} 22. Rxa3 {[%clk 0:02:11]}  Rfb8 {[%clk 0:02:25]} 23. Rda1 {[%clk 0:02:10]}  Qb4 {[%clk 0:02:25]} 24. R1a2 {[%clk 0:02:01]}  Ra7 {[%clk 0:02:18]} 25. d5 {[%clk 0:02:00]}  cxd5 {[%clk 0:02:16]} 26. cxd5 {[%clk 0:01:59]}  Rc8 {[%clk 0:02:10]} 27. dxe6 {[%clk 0:01:52]}  dxe6 {[%clk 0:02:11]} 28. Ra4 {[%clk 0:01:48]}  Qe1 {[%clk 0:02:00]} 29. Qf2 {[%clk 0:01:44]}  Qxf2+ {[%clk 0:01:52]} 30. Kxf2 {[%clk 0:01:44]}  Rb7 {[%clk 0:01:46]} 31. Rxa5 {[%clk 0:01:43]}  Rxb3 {[%clk 0:01:46]} 32. Ra7 {[%clk 0:01:42]}  Kf8 {[%clk 0:01:39]} 33. Rd7 {[%clk 0:01:34]}  Rbc3 {[%clk 0:01:36]} 34. Kg2 {[%clk 0:01:09]}  Rc2+ {[%clk 0:01:34]} 35. Rxc2 {[%clk 0:01:09]}  Rxc2+ {[%clk 0:01:35]} 36. Kh3 {[%clk 0:01:10]}  h6 {[%clk 0:01:31]} 37. Ra7 {[%clk 0:01:00]}  g5 {[%clk 0:01:28]} 38. fxg5 {[%clk 0:00:51]}  hxg5 {[%clk 0:01:29]} 39. Ra6 {[%clk 0:00:47]}  Kf7 {[%clk 0:01:29]} 40. Rd6 {[%clk 0:00:39]}  Re2 {[%clk 0:01:25]} 41. Ra6 {[%clk 0:00:35]}  Rxe5 {[%clk 0:01:23]} 42. Kg2 {[%clk 0:00:35]}  Re2+ {[%clk 0:01:23]} 43. Kg1 {[%clk 0:00:36]}  g4 {[%clk 0:01:22]} 44. Ra8 {[%clk 0:00:30]}  Kf6 {[%clk 0:01:22]} 45. Rf8+ {[%clk 0:00:29]}  Ke5 {[%clk 0:01:22]} 46. Rh8 {[%clk 0:00:29]}  Ke4 {[%clk 0:01:22]} 47. Ra8 {[%clk 0:00:25]}  e5 {[%clk 0:01:21]} 48. Ra1 {[%clk 0:00:22]}  f4 {[%clk 0:01:18]} 49. gxf4 {[%clk 0:00:21]}  exf4 {[%clk 0:01:19]} 50. Ra3 {[%clk 0:00:19]}  Rd2 {[%clk 0:01:14]} 51. Ra4+ {[%clk 0:00:18]}  Ke3 {[%clk 0:01:14]} 52. Ra1 {[%clk 0:00:18]}  f3 {[%clk 0:01:09]} 53. Rf1 {[%clk 0:00:17]}  Rg2+ {[%clk 0:01:08]} 54. Kh1 {[%clk 0:00:17]}  Rf2 {[%clk 0:01:05]} 55. Rg1 {[%clk 0:00:16]}  Re2 {[%clk 0:01:03]} 56. Rf1 {[%clk 0:00:14]}  Kf4 {[%clk 0:01:01]} 57. Kg1 {[%clk 0:00:14]}  g3 {[%clk 0:00:59]} 58. hxg3+ {[%clk 0:00:14]}  Kxg3 {[%clk 0:01:00]} 59. Ra1 {[%clk 0:00:13]}  Rg2+ {[%clk 0:01:00]} 60. Kf1 {[%clk 0:00:14]}  Rh2 {[%clk 0:01:01]} 61. Kg1 {[%clk 0:00:13]}  f2+ {[%clk 0:01:01]} 62. Kf1 {[%clk 0:00:13]}  Rh1+ {[%clk 0:01:02]} 0-1


[Site "https://www.chess.com"]

[Event "Titled Tuesday Blitz November 22 Early 2022"]
[White "Streltsov, Alexey"]
[Black "Orzech, Dominik"]
[WhiteFideId "24104434"]
[BlackFideId "1115065"]
[WhiteElo "2542"]
[BlackElo "2272"]
[Result "1-0"]
[Round "07"]
[TimeControl "180+1"]
[Date "2022.11.23"]
[WhiteClock "0:00:44"]
[BlackClock "0:00:42"]

1. d4 {[%clk 0:03:00]}  Nf6 {[%clk 0:02:26]} 2. Nc3 {[%clk 0:02:59]}  c5 {[%clk 0:02:27]} 3. d5 {[%clk 0:02:58]}  e6 {[%clk 0:02:25]} 4. e4 {[%clk 0:02:59]}  exd5 {[%clk 0:02:25]} 5. exd5 {[%clk 0:03:00]}  d6 {[%clk 0:02:26]} 6. Nf3 {[%clk 0:03:01]}  g6 {[%clk 0:02:26]} 7. Bf4 {[%clk 0:03:01]}  Bg7 {[%clk 0:02:26]} 8. Nb5 {[%clk 0:02:54]}  Ne4 {[%clk 0:02:23]} 9. Bd3 {[%clk 0:02:42]}  Qa5+ {[%clk 0:02:22]} 10. c3 {[%clk 0:02:41]}  O-O {[%clk 0:02:22]} 11. O-O {[%clk 0:02:28]}  Rd8 {[%clk 0:02:06]} 12. a4 {[%clk 0:01:39]}  a6 {[%clk 0:02:03]} 13. Bxe4 {[%clk 0:01:39]}  axb5 {[%clk 0:01:59]} 14. axb5 {[%clk 0:01:40]}  Qxa1 {[%clk 0:01:58]} 15. Qxa1 {[%clk 0:01:41]}  Rxa1 {[%clk 0:01:57]} 16. Rxa1 {[%clk 0:01:42]}  Bf8 {[%clk 0:01:51]} 17. h3 {[%clk 0:01:32]}  Nd7 {[%clk 0:01:30]} 18. c4 {[%clk 0:01:32]}  Bg7 {[%clk 0:01:25]} 19. Bxd6 {[%clk 0:01:20]}  Nf6 {[%clk 0:01:18]} 20. Be7 {[%clk 0:01:18]}  Re8 {[%clk 0:01:01]} 21. Bxf6 {[%clk 0:01:19]}  Rxe4 {[%clk 0:01:01]} 22. Bxg7 {[%clk 0:01:15]}  Kxg7 {[%clk 0:01:02]} 23. b3 {[%clk 0:01:13]}  Bf5 {[%clk 0:00:44]} 24. Ra7 {[%clk 0:01:09]}  Re7 {[%clk 0:00:42]} 25. d6 {[%clk 0:00:44]} 1-0


[Site "https://www.chess.com"]

[Event "Titled Tuesday Blitz November 22 Early 2022"]
[White "Szyszylo, Rafal"]
[Black "Mesa Cruz, Juan Carlos"]
[WhiteFideId "1109626"]
[BlackFideId "6423400"]
[WhiteElo "1981"]
[BlackElo "2059"]
[Result "1-0"]
[Round "07"]
[TimeControl "180+1"]
[Date "2022.11.23"]
[WhiteClock "0:00:14"]
[BlackClock "0:00:05"]

1. e4 {[%clk 0:03:00]}  c5 {[%clk 0:02:59]} 2. Nf3 {[%clk 0:03:00]}  d6 {[%clk 0:03:00]} 3. d4 {[%clk 0:03:01]}  cxd4 {[%clk 0:03:00]} 4. Nxd4 {[%clk 0:03:02]}  Nf6 {[%clk 0:03:01]} 5. Nc3 {[%clk 0:03:02]}  a6 {[%clk 0:03:00]} 6. Bc4 {[%clk 0:03:03]}  e6 {[%clk 0:03:00]} 7. Bb3 {[%clk 0:03:02]}  Be7 {[%clk 0:03:00]} 8. O-O {[%clk 0:03:02]}  O-O {[%clk 0:02:58]} 9. f4 {[%clk 0:03:03]}  Nbd7 {[%clk 0:02:56]} 10. f5 {[%clk 0:02:32]}  Nc5 {[%clk 0:02:55]} 11. fxe6 {[%clk 0:02:32]}  fxe6 {[%clk 0:02:54]} 12. Nf5 {[%clk 0:02:23]}  Nxb3 {[%clk 0:02:40]} 13. Nxe7+ {[%clk 0:02:23]}  Qxe7 {[%clk 0:02:41]} 14. axb3 {[%clk 0:02:23]}  Bd7 {[%clk 0:02:27]} 15. Bg5 {[%clk 0:02:23]}  Bc6 {[%clk 0:02:28]} 16. Qe2 {[%clk 0:02:15]}  Rf7 {[%clk 0:02:11]} 17. Rad1 {[%clk 0:01:55]}  Raf8 {[%clk 0:02:09]} 18. h3 {[%clk 0:01:55]}  Qc7 {[%clk 0:02:02]} 19. Qe3 {[%clk 0:01:46]}  Qa5 {[%clk 0:01:56]} 20. Bxf6 {[%clk 0:01:41]}  Rxf6 {[%clk 0:01:54]} 21. Rxf6 {[%clk 0:01:40]}  Rxf6 {[%clk 0:01:55]} 22. Rxd6 {[%clk 0:01:40]}  Qa1+ {[%clk 0:01:41]} 23. Nd1 {[%clk 0:01:38]}  Qa5 {[%clk 0:00:55]} 24. Nf2 {[%clk 0:01:25]}  Qe5 {[%clk 0:00:48]} 25. Rd8+ {[%clk 0:01:25]}  Kf7 {[%clk 0:00:48]} 26. Ng4 {[%clk 0:01:20]}  Qc7 {[%clk 0:00:43]} 27. Rd2 {[%clk 0:01:06]}  Qf4 {[%clk 0:00:39]} 28. Qe2 {[%clk 0:00:42]}  Rg6 {[%clk 0:00:30]} 29. Qf2 {[%clk 0:00:40]}  Qxf2+ {[%clk 0:00:17]} 30. Rxf2+ {[%clk 0:00:41]}  Ke7 {[%clk 0:00:17]} 31. Ne5 {[%clk 0:00:36]}  Rg3 {[%clk 0:00:15]} 32. Re2 {[%clk 0:00:27]}  Kd6 {[%clk 0:00:09]} 33. Nf7+ {[%clk 0:00:25]}  Ke7 {[%clk 0:00:08]} 34. Kf2 {[%clk 0:00:23]}  Rg6 {[%clk 0:00:07]} 35. Ne5 {[%clk 0:00:23]}  Rf6+ {[%clk 0:00:08]} 36. Ke3 {[%clk 0:00:22]}  Kd6 {[%clk 0:00:08]} 37. Nf3 {[%clk 0:00:21]}  e5 {[%clk 0:00:06]} 38. Rd2+ {[%clk 0:00:21]}  Ke6 {[%clk 0:00:05]} 39. g3 {[%clk 0:00:21]}  h6 {[%clk 0:00:05]} 40. h4 {[%clk 0:00:21]}  Bb5 {[%clk 0:00:03]} 41. c4 {[%clk 0:00:21]}  Bc6 {[%clk 0:00:03]} 42. h5 {[%clk 0:00:20]}  Rf7 {[%clk 0:00:03]} 43. Rd1 {[%clk 0:00:18]}  Be8 {[%clk 0:00:04]} 44. Rd5 {[%clk 0:00:14]}  Rf8 {[%clk 0:00:04]} 45. Rxe5+ {[%clk 0:00:14]}  Kd6 {[%clk 0:00:05]} 46. Rd5+ {[%clk 0:00:14]}  Ke6 {[%clk 0:00:05]} 47. Nd4+ {[%clk 0:00:14]}  Ke7 {[%clk 0:00:06]} 48. g4 {[%clk 0:00:14]}  Bd7 {[%clk 0:00:06]} 49. Nf5+ {[%clk 0:00:14]}  Kf6 {[%clk 0:00:05]} 50. Rxd7 {[%clk 0:00:14]} 1-0


[Site "https://www.chess.com"]

[Event "Titled Tuesday Blitz November 22 Early 2022"]
[White "Tang, Andrew"]
[Black "Kosakowski, Jakub"]
[WhiteFideId "2059630"]
[BlackFideId "1185080"]
[WhiteElo "2581"]
[BlackElo "2463"]
[Result "0-1"]
[Round "07"]
[TimeControl "180+1"]
[Date "2022.11.22"]
[WhiteClock "0:00:02"]
[BlackClock "0:00:38"]

1. d4 {[%clk 0:03:00]}  d5 {[%clk 0:02:59]} 2. Bf4 {[%clk 0:02:58]}  c5 {[%clk 0:02:59]} 3. e3 {[%clk 0:02:57]}  Nc6 {[%clk 0:02:57]} 4. Nf3 {[%clk 0:02:56]}  Nf6 {[%clk 0:02:56]} 5. Nbd2 {[%clk 0:02:57]}  cxd4 {[%clk 0:02:54]} 6. exd4 {[%clk 0:02:58]}  Bf5 {[%clk 0:02:54]} 7. Bb5 {[%clk 0:02:55]}  Rc8 {[%clk 0:02:42]} 8. Ne5 {[%clk 0:01:07]}  Qb6 {[%clk 0:02:36]} 9. Bxc6+ {[%clk 0:01:03]}  bxc6 {[%clk 0:02:36]} 10. Nb3 {[%clk 0:01:03]}  e6 {[%clk 0:02:34]} 11. O-O {[%clk 0:01:02]}  Be7 {[%clk 0:02:34]} 12. c4 {[%clk 0:01:03]}  O-O {[%clk 0:02:27]} 13. Rc1 {[%clk 0:00:59]}  Rfd8 {[%clk 0:01:52]} 14. Bd2 {[%clk 0:00:41]}  Qa6 {[%clk 0:01:40]} 15. Ba5 {[%clk 0:00:38]}  Re8 {[%clk 0:01:39]} 16. Qd2 {[%clk 0:00:34]}  Ne4 {[%clk 0:01:37]} 17. Qe1 {[%clk 0:00:32]}  f6 {[%clk 0:01:31]} 18. Nd7 {[%clk 0:00:19]}  dxc4 {[%clk 0:01:27]} 19. f3 {[%clk 0:00:19]}  cxb3 {[%clk 0:01:03]} 20. fxe4 {[%clk 0:00:20]}  Bg6 {[%clk 0:01:04]} 21. axb3 {[%clk 0:00:18]}  Qd3 {[%clk 0:01:02]} 22. Qf2 {[%clk 0:00:10]}  Qxe4 {[%clk 0:00:59]} 23. Rfe1 {[%clk 0:00:06]}  Qd5 {[%clk 0:00:58]} 24. Nc5 {[%clk 0:00:07]}  Bd6 {[%clk 0:00:52]} 25. b4 {[%clk 0:00:05]}  e5 {[%clk 0:00:50]} 26. dxe5 {[%clk 0:00:04]}  Bxe5 {[%clk 0:00:50]} 27. Rcd1 {[%clk 0:00:04]}  Qf7 {[%clk 0:00:46]} 28. h3 {[%clk 0:00:03]}  h6 {[%clk 0:00:42]} 29. Re2 {[%clk 0:00:02]}  Qc4 {[%clk 0:00:39]} 30. Rde1 {[%clk 0:00:02]}  Bd4 {[%clk 0:00:38]} 0-1


[Site "https://www.chess.com"]